Workbook

Sheet kalkulačka_výpočet_přelom
B2: Výpočet mimořádného příspěvku zaměstnanci při nařízené karanténě | J2: Vložit údaje do bílých políček
J3: březen | K3: celé období | L3: březen
B4: Počet kalendářních dnů v karanténě | J4: 2 | K4: =J4+L4 -> 14 | L4: 12 | P4: Příspěvěk při karanténě ("izolačka")
B5: Počet hodin, které by zaměstnanec odpracoval v době karantény | J5: 33 | K5: =J5+L5 -> 56 | L5: 23 | P5: =_izolačka_celé_období_vážený_průměr -> 2498
B6: Průměrný hodinový výdělek | J6: 124 | K6: =IFERROR(SUMPRODUCT(_hodiny_březen*_mzda_březen+_hodiny_duben*_mzda_duben)/SUM(_hodiny_březen+_hodiny_duben),0) -> 124 | L6: 124 | P6: =J3 -> březen | Q6: =L3 -> březen
B7: Redukce PHV | P7: =_brezen_výše_příspěvku_na_karanténu -> 740 | Q7: =_izolačka_celé_období_vážený_průměr-_brezen_výše_příspěvku_na_karanténu -> 1758
D8: do | E8: 206.85 | G8: redukce na | H8: 0.9 | I8: tj. na | J8: =ROUND($H8*MIN(J$6,$E8),2) -> 111.6 | K8: =ROUND($H8*MIN(K$6,$E8),2) -> 111.6 | L8: =ROUND($H8*MIN(L$6,$E8),2) -> 111.6
B9: nad | C9: =+E8 -> 206.85 | D9: do | E9: 310.28 | G9: redukce na | H9: 0.6 | I9: tj. na | J9: =ROUND($H$9*IF(J$6>C9,MIN(J$6,$C$10)-$C$9,0),2) -> 0 | K9: =ROUND($H$9*IF(K$6>C9,MIN(K$6,$C$10)-$C$9,0),2) -> 0 | L9: =ROUND($H$9*IF(L$6>C9,MIN(L$6,$C$10)-$C$9,0),2) -> 0
B10: nad | C10: =+E9 -> 310.28 | D10: do | E10: 620.38 | G10: redukce na | H10: 0.3 | I10: tj. na | J10: =ROUND($H$10*IF(J$6>$C$10,MIN(J$6,$C$11)-$C$10,0),2) -> 0 | K10: =ROUND($H$10*IF(K$6>$C$10,MIN(K$6,$C$11)-$C$10,0),2) -> 0 | L10: =ROUND($H$10*IF(L$6>$C$10,MIN(L$6,$C$11)-$C$10,0),2) -> 0
B11: nad | C11: =+E10 -> 620.38 | D11: nezohledňuje se
J12: =+J8+J9+J10 -> 111.6 | K12: =+K8+K9+K10 -> 111.6 | L12: =+L8+L9+L10 -> 111.6
C13: Výpočet náhrady mzdy za | E13: hodin | F13: 0.6 | J13: =ROUND((J$12*$F$13),2)*J$5 -> 2209.68 | K13: =ROUND((K$12*$F$13),2)*K$5 -> 3749.76 | L13: =ROUND((L$12*$F$13),2)*L$5 -> 1540.08
B14: Náhrada mzdy (60 % z redukovaného průměru) za dobu karantény | J14: =CEILING(J13,1) -> 2210 | K14: =_nahrada_mzdy_60_za_březen+_nahrada_mzdy_60_za_duben -> 3751 | L14: =CEILING(L13,1) -> 1541 | P14: =P7 -> 740 | Q14: =Q7 -> 1758
B15: 90 % průměrného výdělku za dobu karantény | J15: =0.9*_mzda_březen*_hodiny_březen -> 3682.8 | K15: =0.9*_vážený_průměr_průměrná_hodinová_mzda_celé_období_karantnény*K5 -> 6249.6
B16: Maximální výše příspěvku při karanténě (370 Kč za den) | J16: =IF(J4>14,14*370,J4*370) -> 740 | K16: =IF(K4>14,14*370,K4*370) -> 5180
I17: kontrolní výpočet - součet náhrady mzdy a maximálního příspěvku | J17: =_březen_příspěvek_na_karanténu_370_Kč_za_den+_nahrada_mzdy_60_za_březen -> 2950 | K17: =K16+K14 -> 8931
B18: Případné snížení příspěvku** | J18: =IF((_březen_90_průměrné_mzdy_za_dobu_karantény-_nahrada_mzdy_60_za_březen-_březen_příspěvek_na_karanténu_370_Kč_za_den)<0,(_březen_90_průměrné_mzdy_za_dobu_karantény-_nahrada_mzdy_60_za_březen-_březen_příspěvek_na_karanténu_370_Kč_za_den)*1,(_březen_90_průměrné_mzdy_za_dobu_karantény-_nahrada_mzdy_60_za_březen-_březen_příspěvek_na_karanténu_370_Kč_za_den)*0) -> 0 | K18: =IF((K15-K14-K16)<0,(K15-K14-K16)*1,(K15-K14-K16)*0) -> -2681.4
B19: Součet náhrady mzdy a příspěvku při karanténě | J19: =FLOOR(_nahrada_mzdy_60_za_březen+_březen_příspěvek_na_karanténu_370_Kč_za_den+_březen_případné_snížení_příspěvku,1) -> 2950 | K19: =FLOOR(_nahrada_mzdy_60_za_období_karantény_pomocí_váženého_průměru+_celé_období_příspěvek_karanténa+_celé_období_případné_snížení_příspěvku,1) -> 6249 | L19: =_celková_náhrada_v_době_karantény-_březen_Součet_náhrady_mzdy_a_příspěvku_při_karanténě -> 3299
B20: výše příspěvku na karanténu | J20: =FLOOR(_provizorni_prispevek_brezen-brezen_60_reduk_prum_karantena,1) -> 740 | K20: =FLOOR(_celková_náhrada_v_době_karantény-_nahrada_mzdy_60_za_období_karantény_pomocí_váženého_průměru,1) -> 2498 | L20: =FLOOR(_izolačka_celé_období_vážený_průměr-_brezen_výše_příspěvku_na_karanténu,1) -> 1758
B21: Tzv. izolačka = příspěvek při karanténě | K21: =_izolačka_celé_období_vážený_průměr -> 2498 | P21: Běžná náhrada mzdy
P22: =Q24+P24 -> 3751
B23: Součet náhrady mzdy a příspěvku při karanténě * | K23: =_celková_náhrada_v_době_karantény -> 6249 | P23: =J3 -> březen | Q23: =L3 -> březen
P24: =_nahrada_mzdy_60_za_březen -> 2210 | Q24: =_nahrada_mzdy_60_za_duben -> 1541
B26: *Příspěvek při karanténě v součtu s náhradou příjmu dle zákoníku práce nesmí být vyšší než 90 % průměrného výdělku. V souvislosti s tím se pro účely výplaty náhrada příjmu zaokrouhluje na celé koruny nahoru a příspěvek při karanténě na celé koruny dolů. | P26: celková náhrada v době karantény
P27: =_celková_náhrada_v_době_karantény -> 6249
B28: Orientační výpočet hodinové mzdy **
B29: Výše měsíční mzdy | D29: 25000 | P29: =J3 -> březen | Q29: =L3 -> březen
B30: Výše úvazku | D30: 1 | P30: =_březen_Součet_náhrady_mzdy_a_příspěvku_při_karanténě -> 2950 | Q30: =_duben_náhrady_mzdy_a_příspěvku_při_karanténě -> 3299
B31: Hodinová mzda | D31: =D29/(4.348*40*D30) -> 143.7442502
B32: ** Slouží pouze pro získání přibližné představy o výši hodinové mzdy pro určitou výši měsíční mzdy. Do kalkulátoru je třeba zadat průměrný hodinový výdělek konkrétního zaměstnance spočítaný podle zákoníku práce.

Sheet měsíc (hidden)
A1: měsíc
A2: leden
A3: únor
A4: březen
A5: duben
A6: květen
A7: červen
A8: červenec
A9: srpen
A10: září
A11: říjen
A12: listopad
A13: prosinec
